fUSD/lending_fUSD_20250521
["ID","MTS","AMOUNT","RATE_DAILY","PERIOD"]
[361822374,1747823607522,-2039.96,0.00036164,5]
[361822375,1747823607532,-659.87,0.00036164,5]
[361822376,1747823607543,-2331.07,0.00036164,5]
[361822377,1747823607553,-1650.39,0.00036164,5]
[361822378,1747823607564,-1130.47,0.00036164,5]
[361822379,1747823607574,-8529.77,0.00036164,5]
[361822380,1747823607584,-1170.52,0.00036164,5]
[361822381,1747823607594,-1019.14,0.00036164,5]
[361822382,1747823607605,-594.46,0.00036164,5]
[361822383,1747823607615,-420.0,0.00036164,5]
[361822384,1747823607626,-420.0,0.00036164,5]
[361822385,1747823607636,-528.88,0.00036164,5]
[361822386,1747823607646,-420.0,0.00036164,5]
[361822387,1747823607657,-729.81,0.00036164,5]
[361822388,1747823607667,-6448.31,0.00036164,5]
[361822389,1747823607678,-1260.39,0.00036164,5]
[361822390,1747823607688,-157.265004,0.00036164,5]
[361822391,1747823607699,-4031.81,0.00036164,5]
[361822392,1747823607709,-1826.19,0.00036164,5]
[361822393,1747823607718,-15980.3,0.00036164,2]
[361822394,1747823607730,-569.82,0.00036164,5]
[361822395,1747823607740,-1991.55,0.00036164,5]
[361822396,1747823607750,-13852.49,0.00036164,5]
[361822397,1747823607761,-420.0,0.00036164,5]
[361822398,1747823607771,-711.84,0.00036164,5]
[361822399,1747823607783,-932.88,0.00036164,5]
[361822400,1747823607793,-1316.77,0.00036164,5]
[361822401,1747823607804,-1559.3,0.00036164,5]
[361822402,1747823607814,-1828.91,0.00036164,5]
[361822403,1747823607824,-1672.61,0.00036164,5]
[361822404,1747823607834,-6643.48,0.00036164,5]
[361822405,1747823607844,-5987.12,0.00036164,5]
[361822406,1747823607854,-498.61176068,0.00036164,5]
[361822407,1747823607864,-4970.74,0.00036164,5]
[361822408,1747823607873,-219.17,0.00036164,5]
[361822409,1747823607884,-908.99,0.00036164,5]
[361822410,1747823607894,-1754.62,0.00036164,5]
[361822411,1747823607904,-636.17,0.00036164,5]
[361822412,1747823607914,-907.69,0.00036164,5]
[361822413,1747823607925,-434.27,0.00036164,5]
[361822414,1747823607935,-420.0,0.00036164,5]
[361822415,1747823607945,-420.0,0.00036164,5]
[361822416,1747823607956,-14282.24,0.00036164,5]
[361822417,1747823607966,-2354.7,0.00036164,5]
[361822418,1747823607976,-2934.17,0.00036164,5]
[361822419,1747823607985,-420.0,0.00036164,5]
[361822420,1747823607995,-2098.09,0.00036164,5]
[361822421,1747823608006,-2370.12,0.00036164,5]
[361822422,1747823608016,-635.77,0.00036164,5]
[361822423,1747823608026,-1608.41,0.00036164,5]
[361822424,1747823608036,-2448.57,0.00036164,5]
[361822425,1747823608046,-565.39,0.00036164,5]
[361822426,1747823608056,-832.67,0.00036164,5]
[361822427,1747823608066,-1727.02,0.00036164,5]
[361822428,1747823608075,-2132.27,0.00036164,5]
[361822429,1747823608086,-1444.81,0.00036164,5]
[361822430,1747823608095,-674.57,0.00036164,5]
[361822431,1747823608106,-1244.04,0.00036164,5]
[361822432,1747823608116,-14461.5,0.00036164,5]
[361822433,1747823608127,-5215.67,0.00036164,5]
[361822434,1747823608138,-4167.33,0.00036164,5]
[361822435,1747823608148,-888.13,0.00036164,5]
[361822436,1747823608158,-207938.64,0.00036164,5]
[361822437,1747823608168,-548.09,0.00036164,5]
[361822438,1747823608178,-420.0,0.00036164,5]
[361822439,1747823608188,-2319.06,0.00036164,5]
[361822440,1747823608199,-3257.11,0.00036164,5]
[361822441,1747823608209,-1507.21,0.00036164,5]
[361822442,1747823608219,-1493.55,0.00036164,5]
[361822443,1747823608229,-2557.88,0.00036164,5]
[361822444,1747823608240,-1088.44,0.00036164,5]
[361822445,1747823608250,-2873.2,0.00036164,5]
[361822446,1747823608260,-697.67,0.00036164,5]
[361822447,1747823608270,-5582.21,0.00036164,5]
[361822448,1747823608279,-480.01,0.00036164,5]
[361822449,1747823608290,-2282.96,0.00036164,5]
[361822450,1747823608300,-1657.0,0.00036164,5]
[361822451,1747823608310,-420.0,0.00036164,5]
[361822452,1747823608320,-18765.11,0.00036164,5]
[361822453,1747823608330,-799.92,0.00036164,5]
[361822454,1747823608340,-1063.9,0.00036164,5]
[361822455,1747823608350,-420.0,0.00036164,5]
[361822456,1747823608360,-673.17,0.00036164,5]
[361822457,1747823608369,-3847.23,0.00036164,5]
[361822458,1747823608381,-549.05,0.00036164,5]
[361822459,1747823608391,-474.32,0.00036164,5]
[361822460,1747823608402,-2564.95,0.00036164,5]
[361822461,1747823608413,-400.04510682,0.00036164,5]
[361822462,1747823608426,-1818.07,0.00036164,5]
[361822463,1747823608437,-42262.48,0.00036164,5]
[361822464,1747823608447,-1719.68,0.00036164,5]
[361822465,1747823608458,-4510.74,0.00036164,5]
[361822466,1747823608468,-516.93,0.00036164,5]
[361822467,1747823608479,-3137.08,0.00036164,5]
[361822468,1747823608490,-506.82,0.00036164,5]
[361822469,1747823608502,-9532.22,0.00036164,5]
[361822470,1747823608514,-420.0,0.00036164,5]
[361822471,1747823608525,-1001.23,0.00036164,5]
[361822472,1747823608536,-420.0,0.00036164,5]
[361822473,1747823608547,-1349.86,0.00036164,5]
[361822474,1747823608558,-1554.78,0.00036164,5]
[361822475,1747823608569,-874.84,0.00036164,5]
[361822476,1747823608580,-2359.68,0.00036164,5]
[361822477,1747823608590,-627.61,0.00036164,5]
[361822478,1747823608600,-670.93,0.00036164,5]
[361822479,1747823608611,-420.0,0.00036164,5]
[361822480,1747823608619,-1909.1,0.00036164,5]
[361822481,1747823608629,-3667.82,0.00036164,5]
[361822482,1747823608641,-713.73,0.00036164,5]
[361822483,1747823608653,-5548.0,0.000362,2]
[361822484,1747823608663,-3197.62,0.000364,2]
[361822485,1747823608673,-3197.62,0.000364,2]
[361822486,1747823608682,-200.96,0.000364,2]
[361822487,1747823608691,-741.06,0.000364,2]
[361822488,1747823608700,-741.06,0.000364,2]
[361822489,1747823608710,-289.13,0.000364,2]
[361822490,1747823608720,-289.13,0.000364,2]
[361822491,1747823608730,-1980.59,0.000364,2]
[361822492,1747823608741,-1980.59,0.000364,2]
[361822493,1747823608750,-2673.58,0.000364,2]
[361822494,1747823608761,-2673.58,0.000364,2]
[361822495,1747823608946,-583.36,0.000364,2]
[361822496,1747823608957,-583.36,0.000364,2]
[361822497,1747823608966,-1796.49,0.000364,2]
[361822498,1747823608977,-1796.49,0.000364,2]
[361822499,1747823608987,-204.11,0.000364,2]
[361822500,1747823608996,-204.11,0.000364,2]
[361822501,1747823609006,-512.87,0.000364,2]
[361822502,1747823609016,-512.87,0.000364,2]
[361822503,1747823609025,-1000.0,0.00036437,32]
[361822504,1747823609034,-420.0,0.00036438,5]
[361822505,1747823609044,-868.63,0.00036438,5]
[361822506,1747823609054,-771.73,0.00036438,5]
[361822507,1747823609063,-1206.97,0.00036438,5]
[361822508,1747823609073,-1764.15,0.00036438,5]
[361822509,1747823609082,-497.1,0.00036438,5]
[361822510,1747823609092,-550.16,0.00036438,5]
[361822511,1747823609101,-420.0,0.00036438,5]
[361822512,1747823609110,-420.0,0.00036438,5]
[361822513,1747823609120,-965.56,0.00036438,5]
[361822514,1747823609129,-616.51,0.00036438,5]
[361822515,1747823609138,-420.0,0.00036438,5]
[361822516,1747823609147,-562.65,0.00036438,5]
[361822517,1747823609156,-611.48,0.00036438,5]
[361822518,1747823609165,-499.33,0.00036438,5]
[361822519,1747823609175,-420.0,0.00036438,5]
[361822520,1747823609184,-506.54,0.00036438,5]
[361822521,1747823609194,-911.46,0.00036438,5]
[361822522,1747823609203,-1153.75,0.00036438,5]
[361822523,1747823609213,-420.0,0.00036438,5]
[361822524,1747823609222,-730.43,0.00036438,5]
[361822525,1747823609233,-420.0,0.00036438,5]
[361822526,1747823609243,-1697.54,0.00036438,5]
[361822527,1747823609253,-579.77,0.00036438,5]
[361822528,1747823609263,-420.0,0.00036438,5]
[361822529,1747823609273,-420.0,0.00036438,5]
[361822530,1747823609282,-570.61,0.00036438,5]
[361822531,1747823609292,-479.47797344,0.00036438,5]
[361822532,1747823609301,-788.01,0.00036438,5]
[361822533,1747823609311,-1490.72,0.00036438,5]
[361822534,1747823609321,-917.84,0.00036438,5]
[361822535,1747823609330,-642.67,0.00036438,5]
[361822536,1747823609340,-807.74,0.00036438,5]
[361822537,1747823609350,-901.58,0.00036438,5]
[361822538,1747823609360,-3015.53,0.00036438,5]
[361822539,1747823609370,-460.17,0.00036438,5]
[361822540,1747823609379,-642.11,0.00036438,5]
[361822541,1747823609392,-420.0,0.00036438,5]
[361822542,1747823609402,-420.0,0.00036438,5]
[361822543,1747823609411,-1185.77,0.00036438,5]
[361822544,1747823609420,-973.19,0.00036438,5]
[361822545,1747823609431,-497.57,0.00036438,5]
[361822546,1747823609440,-420.0,0.00036438,5]
[361822547,1747823609449,-1098.15,0.00036438,5]
[361822548,1747823609459,-685.16,0.00036438,5]
[361822549,1747823609470,-420.0,0.00036438,5]
[361822550,1747823609481,-448.34,0.00036438,5]
[361822551,1747823609489,-1485.21,0.00036438,5]
[361822552,1747823609499,-818.23,0.00036438,5]
[361822553,1747823609508,-443.81,0.00036438,5]
[361822554,1747823609517,-1526.88,0.00036438,5]
[361822555,1747823609527,-420.0,0.00036438,5]
[361822556,1747823609536,-470.16,0.00036438,5]
[361822557,1747823609545,-420.0,0.00036438,5]
[361822558,1747823609555,-443.58,0.00036438,5]
[361822559,1747823609565,-669.64,0.00036438,5]
[361822560,1747823609574,-420.0,0.00036438,5]
[361822561,1747823609583,-937.45,0.00036438,5]
[361822562,1747823609592,-2266.87,0.00036438,5]
[361822563,1747823609602,-420.0,0.00036438,5]
[361822564,1747823609611,-420.0,0.00036438,5]
[361822565,1747823609620,-442.68,0.00036438,5]
[361822566,1747823609631,-420.0,0.00036438,5]
[361822567,1747823609641,-597.09,0.00036438,5]
[361822568,1747823609651,-655.53,0.00036438,5]
[361822569,1747823609660,-636.42,0.00036438,5]
[361822570,1747823609669,-420.0,0.00036438,5]
[361822571,1747823609679,-838.78,0.00036438,5]
[361822572,1747823609688,-493.93,0.00036438,5]
[361822573,1747823609698,-420.0,0.00036438,5]
[361822574,1747823609708,-560.23,0.00036438,5]
[361822575,1747823609717,-1078.18,0.00036438,5]
[361822576,1747823609727,-420.0,0.00036438,5]
[361822577,1747823609736,-420.0,0.00036438,5]
[361822578,1747823609745,-557.28706239,0.00036438,5]
[361822579,1747823609755,-1065.69,0.00036438,5]
[361822580,1747823609765,-1253.93,0.00036438,5]
[361822581,1747823609775,-1274.75,0.00036438,5]
[361822582,1747823609785,-463.91,0.00036438,5]
[361822583,1747823609794,-721.97,0.00036438,5]
[361822584,1747823609804,-2322.3,0.00036438,5]
[361822585,1747823609814,-420.0,0.00036438,5]
[361822586,1747823609824,-821.62,0.00036438,5]
[361822587,1747823609833,-422.38,0.00036438,5]
[361822588,1747823609843,-420.0,0.00036438,5]
[361822589,1747823609853,-550.85,0.00036438,5]
[361822590,1747823609863,-1544.61,0.00036438,5]
[361822591,1747823609872,-420.0,0.00036438,5]
[361822592,1747823609882,-499.46,0.00036438,5]
[361822593,1747823609892,-616.6,0.00036438,5]
[361822594,1747823609901,-678.04,0.00036438,5]
[361822595,1747823609911,-546.75,0.00036438,5]
[361822596,1747823609921,-1170.85,0.00036438,5]
[361822597,1747823609930,-271.99063071,0.00036438,5]
[361822598,1747823609940,-420.0,0.00036438,5]
[361822599,1747823609950,-420.0,0.00036438,5]
[361822600,1747823609962,-1581.01,0.00036438,5]
[361822601,1747823609972,-420.0,0.00036438,5]
[361822602,1747823609983,-2020.82,0.00036438,5]
[361822603,1747823609993,-1587.36,0.00036438,5]
[361822604,1747823610002,-440.31,0.00036438,5]
[361822605,1747823610012,-528.73,0.00036438,5]
[361822606,1747823610022,-420.0,0.00036438,5]
[361822607,1747823610031,-835.65,0.00036438,5]
[361822608,1747823610041,-530.24,0.00036438,5]
[361822609,1747823610051,-420.0,0.00036438,5]
[361822610,1747823610061,-632.49,0.00036438,5]
[361822611,1747823610071,-712.53,0.00036438,5]
[361822612,1747823610082,-420.0,0.00036438,5]
[361822613,1747823610092,-420.0,0.00036438,5]
[361822614,1747823610101,-905.81,0.00036438,5]
[361822615,1747823610110,-1500.35,0.00036438,5]
[361822616,1747823610120,-913.23,0.00036438,5]
[361822617,1747823610130,-891.23,0.00036438,5]
[361822618,1747823610140,-420.0,0.00036438,5]
[361822619,1747823610150,-420.0,0.00036438,5]
[361822620,1747823610160,-420.0,0.00036438,5]
[361822621,1747823610171,-793.59,0.00036438,5]
[361822622,1747823610181,-420.0,0.00036438,5]
[361822623,1747823610191,-532.78,0.00036438,5]
[361822624,1747823610201,-420.0,0.00036438,5]
[361822625,1747823610210,-420.0,0.00036438,5]
[361822626,1747823610220,-716.67,0.00036438,5]
[361822627,1747823610230,-431.22,0.00036438,5]
[361822628,1747823610239,-3321.89,0.00036438,5]
[361822629,1747823610249,-655.87,0.00036438,5]
[361822630,1747823610259,-420.0,0.00036438,5]
[361822631,1747823610269,-464.92,0.00036438,5]
[361822632,1747823610279,-752.46,0.00036438,5]
[361822633,1747823610289,-1164.32,0.00036438,5]
[361822634,1747823610299,-523.47788327,0.00036438,5]
[361822635,1747823610309,-447.46,0.00036438,5]
[361822636,1747823610319,-527.90826158,0.00036438,5]
[361822637,1747823610329,-970.46,0.00036438,5]
[361822638,1747823610339,-1182.51,0.00036438,5]
[361822639,1747823610348,-2566.8,0.00036438,3]
[361822640,1747823610358,-420.0,0.00036438,5]
[361822641,1747823610368,-986.1,0.00036438,5]
[361822642,1747823610378,-3544.76,0.00036438,5]
[361822643,1747823610391,-420.0,0.00036438,5]
[361822644,1747823610402,-528.46,0.00036438,5]
[361822645,1747823610412,-1116.24,0.00036438,5]
[361822646,1747823610423,-607.2,0.00036438,5]
[361822647,1747823610433,-498.41,0.00036438,5]
[361822648,1747823610443,-511.54,0.00036438,5]
[361822649,1747823610453,-420.0,0.00036438,5]
[361822650,1747823610464,-1446.26,0.00036438,5]
[361822651,1747823610474,-635.53,0.00036438,5]
[361822652,1747823610484,-383.70478851,0.00036438,5]
[361822653,1747823610493,-420.0,0.00036438,5]
[361822654,1747823610502,-420.0,0.00036438,5]
[361822655,1747823610515,-602.05,0.00036438,5]
[361822656,1747823610525,-420.0,0.00036438,5]
[361822657,1747823610535,-3171.93,0.00036438,5]
[361822658,1747823610545,-672.06,0.00036438,5]
[361822659,1747823610556,-1136.92,0.00036438,5]
[361822660,1747823610566,-501.87,0.00036438,5]
[361822661,1747823610576,-420.0,0.00036438,5]
[361822662,1747823610587,-960.17,0.00036438,5]
[361822663,1747823610596,-1498.01,0.00036438,5]
[361822664,1747823610606,-420.0,0.00036438,5]
[361822665,1747823610616,-420.0,0.00036438,5]
[361822666,1747823610626,-420.0,0.00036438,5]
[361822667,1747823610637,-489.93,0.00036438,5]
[361822668,1747823610647,-420.0,0.00036438,5]
[361822669,1747823610657,-1181.55,0.00036438,5]
[361822670,1747823610669,-480.87050587,0.00036438,5]
[361822671,1747823610678,-1634.56,0.00036438,5]
[361822672,1747823610688,-731.06,0.00036438,5]
[361822673,1747823610699,-665.75,0.00036438,5]
[361822674,1747823610709,-420.0,0.00036438,5]
[361822675,1747823610719,-1010.87,0.00036438,5]
[361822676,1747823610729,-725.49,0.00036438,5]
[361822677,1747823610739,-1218.91,0.00036438,5]
[361822678,1747823610750,-1168.31,0.00036438,5]
[361822679,1747823610759,-1264.38,0.00036438,5]
[361822680,1747823610769,-420.0,0.00036438,5]
[361822681,1747823610779,-420.0,0.00036438,2]
[361822682,1747823610789,-3033.08,0.00036438,5]
[361822683,1747823610799,-584.07,0.00036438,5]
[361822684,1747823610809,-420.0,0.00036438,5]
[361822685,1747823610819,-420.0,0.00036438,5]
[361822686,1747823610829,-740.34,0.00036438,5]
[361822687,1747823610838,-420.0,0.00036438,5]
[361822688,1747823610848,-420.0,0.00036438,5]
[361822689,1747823610857,-337.88092543,0.00036438,5]
[361822690,1747823610867,-420.0,0.00036438,5]
[361822691,1747823610876,-1236.73,0.00036438,5]
[361822692,1747823610886,-718.57,0.00036438,5]
[361822693,1747823610896,-420.0,0.00036438,2]
[361822694,1747823610905,-2646.97,0.00036438,5]
[361822695,1747823610915,-420.0,0.00036438,5]
[361822696,1747823610924,-3655.51,0.00036438,5]
[361822697,1747823610934,-420.0,0.00036438,5]
[361822698,1747823610944,-1194.67,0.00036438,5]
[361822699,1747823610953,-637.39,0.00036438,5]
[361822700,1747823610963,-2368.39,0.00036438,5]
[361822701,1747823610973,-932.97,0.00036438,5]
[361822702,1747823610982,-475.79,0.00036438,5]
[361822703,1747823610992,-788.04,0.00036438,5]
[361822704,1747823611002,-469.81,0.00036438,5]
[361822705,1747823611012,-1158.88,0.00036438,5]
[361822706,1747823611022,-2693.72,0.00036438,5]
[361822707,1747823611032,-2741.78,0.00036438,5]
[361822708,1747823611042,-1351.52,0.00036438,5]
[361822709,1747823611052,-420.0,0.00036438,5]
[361822710,1747823611061,-1167.31,0.00036438,5]
[361822711,1747823611071,-1192.06,0.00036438,5]
[361822712,1747823611081,-664.46,0.00036438,5]
[361822713,1747823611091,-2096.4,0.00036438,5]
[361822714,1747823611101,-506.87,0.00036438,5]
[361822715,1747823611111,-783.68,0.00036438,5]
[361822716,1747823611121,-1450.92,0.00036438,5]
[361822717,1747823611132,-1675.88,0.00036438,5]
[361822718,1747823611142,-420.0,0.00036438,5]
[361822719,1747823611152,-421.11,0.00036438,5]
[361822720,1747823611161,-655.43,0.00036438,5]
[361822721,1747823611171,-1330.16,0.00036438,5]
[361822722,1747823611181,-470.23,0.00036438,5]
[361822723,1747823611192,-628.75,0.00036438,5]
[361822724,1747823611202,-789.43,0.00036438,5]
[361822725,1747823611213,-2066.32,0.00036438,5]
[361822726,1747823611222,-543.38,0.00036438,5]
[361822727,1747823611233,-1884.88,0.00036438,5]
[361822728,1747823611243,-443.39,0.00036438,5]
[361822729,1747823611255,-814.52,0.00036438,5]
[361822730,1747823611266,-420.0,0.00036438,5]
[361822731,1747823611276,-468.75,0.00036438,5]
[361822732,1747823611285,-2280.59,0.00036438,5]
[361822733,1747823611295,-420.0,0.00036438,5]
[361822734,1747823611304,-420.0,0.00036438,5]
[361822735,1747823611313,-1660.08,0.00036438,5]
[361822736,1747823611324,-420.0,0.00036438,5]
[361822737,1747823611334,-420.0,0.00036438,5]
[361822738,1747823611344,-2531.44,0.00036438,5]
[361822739,1747823611354,-891.37,0.00036438,5]
[361822740,1747823611364,-1229.28,0.00036438,5]
[361822741,1747823611374,-420.0,0.00036438,5]
[361822742,1747823611387,-562.73,0.00036438,5]
[361822743,1747823611397,-420.0,0.00036438,5]
[361822744,1747823611407,-639.64,0.00036438,5]
[361822745,1747823611416,-1520.14,0.00036438,5]
[361822746,1747823611426,-420.0,0.00036438,5]
[361822747,1747823611436,-2002.78,0.00036438,5]
[361822748,1747823611446,-504.03,0.00036438,5]
[361822749,1747823611456,-420.0,0.00036438,5]
[361822750,1747823611466,-756.35,0.00036438,5]
[361822751,1747823611476,-420.0,0.00036438,5]
[361822752,1747823611486,-1155.6,0.00036438,5]
[361822753,1747823611495,-2487.3,0.00036438,5]
[361822754,1747823611505,-829.63,0.00036438,5]
[361822755,1747823611516,-440.4,0.00036438,5]
[361822756,1747823611526,-233.87680656,0.00036438,5]
[361822757,1747823611536,-420.0,0.00036438,5]
[361822758,1747823611546,-1069.06,0.00036438,5]
[361822759,1747823611555,-512.22,0.00036438,5]
[361822760,1747823611565,-1131.24,0.00036438,5]
[361822761,1747823611575,-3548.27,0.00036438,5]
[361822762,1747823611586,-531.37,0.00036438,5]
[361822763,1747823611597,-438.38,0.00036438,5]
[361822764,1747823611607,-420.0,0.00036438,5]
[361822765,1747823611617,-836.66,0.00036438,5]
[361822766,1747823611626,-1758.59,0.00036438,5]
[361822767,1747823611636,-2244.73,0.00036438,5]
[361822768,1747823611646,-706.99,0.00036438,5]
[361822769,1747823611655,-1671.68,0.00036438,5]
[361822770,1747823611665,-1303.3,0.00036438,5]
[361822771,1747823611676,-630.7,0.00036438,5]
[361822772,1747823611685,-1546.03,0.00036438,5]
[361822773,1747823611695,-1449.1,0.00036438,5]
[361822774,1747823611705,-1084.11,0.00036438,5]
[361822775,1747823611715,-796.16,0.00036438,5]
[361822776,1747823611725,-829.47,0.00036438,5]
[361822777,1747823611735,-560.22,0.00036438,5]
[361822778,1747823611745,-2061.87,0.00036438,5]
[361822779,1747823611754,-1759.24,0.00036438,5]
[361822780,1747823611763,-677.92,0.00036438,5]
[361822781,1747823611773,-420.0,0.00036438,5]
[361822782,1747823611783,-2008.9,0.00036438,5]
[361822783,1747823611792,-420.0,0.00036438,5]
[361822784,1747823611802,-603.25,0.00036438,5]
[361822785,1747823611811,-166.22859692,0.00036438,5]
[361822786,1747823611821,-3335.62,0.00036438,5]
[361822787,1747823611831,-794.93,0.00036438,5]
[361822788,1747823611840,-462.11,0.00036438,5]
[361822789,1747823611851,-1384.78,0.00036438,5]
[361822790,1747823611860,-3088.45,0.00036438,5]
[361822791,1747823611871,-3415.98,0.00036438,5]
[361822792,1747823611881,-475.97,0.00036438,5]
[361822793,1747823611891,-420.0,0.00036438,5]
[361822794,1747823611901,-1441.04,0.00036438,5]
[361822795,1747823611911,-1360.17,0.00036438,5]
[361822796,1747823611921,-799.95,0.00036438,5]
[361822797,1747823611932,-1022.16,0.00036438,5]
[361822798,1747823611941,-2905.57,0.00036438,5]
[361822799,1747823611952,-420.0,0.00036438,5]
[361822800,1747823611962,-2154.53,0.00036438,5]
[361822801,1747823611972,-1412.77,0.00036438,5]
[361822802,1747823611982,-420.0,0.00036438,5]
[361822803,1747823611991,-1804.92,0.00036438,5]
[361822804,1747823612001,-931.82,0.00036438,5]
[361822805,1747823612011,-3820.81,0.00036438,5]
[361822806,1747823612021,-420.0,0.00036438,5]
[361822807,1747823612031,-446.52,0.00036438,5]
[361822808,1747823612040,-420.0,0.00036438,5]
[361822809,1747823612050,-3379.22,0.00036438,5]
[361822810,1747823612060,-552.29,0.00036438,5]
[361822811,1747823612070,-2204.62,0.00036438,5]
[361822812,1747823612079,-1365.61,0.00036438,5]
[361822813,1747823612089,-739.98,0.00036438,5]
[361822814,1747823612099,-1686.16,0.00036438,5]
[361822815,1747823612109,-638.15,0.00036438,5]
[361822816,1747823612119,-2851.0,0.00036438,5]
[361822817,1747823612128,-420.0,0.00036438,5]
[361822818,1747823612139,-641.93,0.00036438,5]
[361822819,1747823612148,-669.03,0.00036438,5]
[361822820,1747823612158,-1513.514558,0.00036438,5]
[361822821,1747823612167,-1056.24,0.00036438,5]
[361822822,1747823612178,-605.2,0.00036438,5]
[361822823,1747823612188,-3414.72,0.00036438,5]
[361822824,1747823612197,-456.44,0.00036438,5]
[361822825,1747823612207,-2738.58,0.00036438,5]
[361822826,1747823612217,-626.72,0.00036438,5]
[361822827,1747823612227,-1961.22,0.00036438,5]
[361822828,1747823612237,-4019.16,0.00036438,5]
[361822829,1747823612247,-405.87712609,0.00036438,5]
[361822830,1747823612256,-420.0,0.00036438,5]
[361822831,1747823612265,-501.19,0.00036438,5]
[361822832,1747823612274,-437.02,0.00036438,5]
[361822833,1747823612285,-420.0,0.00036438,5]
[361822834,1747823612294,-3829.73,0.00036438,5]
[361822835,1747823612303,-1171.35,0.00036438,5]
[361822836,1747823612312,-1195.86,0.00036438,5]
[361822837,1747823612322,-1602.68,0.00036438,5]
[361822838,1747823612332,-1595.56,0.00036438,5]
[361822839,1747823612341,-1403.63,0.00036438,5]
[361822840,1747823612350,-420.0,0.00036438,5]
[361822841,1747823612360,-2127.07,0.00036438,5]
[361822842,1747823612369,-1620.22,0.00036438,5]
[361822843,1747823612382,-975.42,0.00036438,5]
[361822844,1747823612394,-663.27,0.00036438,5]
[361822845,1747823612404,-4718.07,0.00036438,5]
[361822846,1747823612414,-1651.18,0.00036438,5]
[361822847,1747823612426,-560.95,0.00036438,5]
[361822848,1747823612435,-701.41,0.00036438,5]
[361822849,1747823612445,-950.44,0.00036438,5]
[361822850,1747823612455,-420.0,0.00036438,5]
[361822851,1747823612466,-708.42,0.00036438,5]
[361822852,1747823612476,-3358.3,0.00036438,5]
[361822853,1747823612487,-420.0,0.00036438,5]
[361822854,1747823612498,-1131.94,0.00036438,5]
[361822855,1747823612508,-3071.77,0.00036438,5]
[361822856,1747823612518,-1890.69,0.00036438,5]
[361822857,1747823612528,-2588.8,0.00036438,5]
[361822858,1747823612538,-1081.97,0.00036438,5]
[361822859,1747823612549,-447.09,0.00036438,5]
[361822860,1747823612559,-1061.79,0.00036438,5]
[361822861,1747823612571,-3165.26,0.00036438,5]
[361822862,1747823612580,-1578.73,0.00036438,5]
[361822863,1747823612590,-420.0,0.00036438,5]
[361822864,1747823612599,-437.54,0.00036438,5]
[361822865,1747823612609,-801.31,0.00036438,5]
[361822866,1747823612619,-1117.87,0.00036438,5]
[361822867,1747823612629,-590.41,0.00036438,5]
[361822868,1747823612638,-646.24,0.00036438,5]
[361822869,1747823612648,-469.33,0.00036438,5]
[361822870,1747823612658,-1582.05,0.00036438,5]
[361822871,1747823612668,-944.65,0.00036438,5]
[361822872,1747823612677,-1388.27,0.00036438,5]
[361822873,1747823612688,-420.0,0.00036438,5]